[Event "Early-Titled-Tuesday-Blitz-April-16-2024"]
[Site "Chess.com"]
[Date "2024.04.16"]
[Round "2"]
[White "Kirill_Klukin"]
[Black "Dinosaurio_1975"]
[Result "1-0"]
[WhiteElo "2835"]
[BlackElo "2569"]
[TimeControl "180+1"]
[EndTime "8:18:07 PDT"]
[Termination "Kirill_Klukin won by checkmate"]

1. d4 {[%clk 0:03:00.9]} 1... d5 {[%clk 0:02:59]} 2. c4 {[%clk 0:03:01]} 2... e6
{[%clk 0:02:58.6]} 3. Nc3 {[%clk 0:03:01.2]} 3... Nf6 {[%clk 0:02:58.9]} 4. cxd5
{[%clk 0:03:01.4]} 4... exd5 {[%clk 0:02:58.8]} 5. Bg5 {[%clk 0:03:02]} 5... c6
{[%clk 0:02:58.4]} 6. e3 {[%clk 0:03:02]} 6... h6 {[%clk 0:02:58.9]} 7. Bf4
{[%clk 0:03:02.1]} 7... Bf5 {[%clk 0:02:56.8]} 8. Bd3 {[%clk 0:02:51.6]} 8...
Bxd3 {[%clk 0:02:55.3]} 9. Qxd3 {[%clk 0:02:52.5]} 9... Bd6 {[%clk 0:02:50.9]}
10. Nge2 {[%clk 0:02:52.7]} 10... O-O {[%clk 0:02:47.1]} 11. h3 {[%clk
0:02:52.3]} 11... Re8 {[%clk 0:02:45.1]} 12. O-O-O {[%clk 0:02:39]} 12... Ne4
{[%clk 0:02:43.4]} 13. Nxe4 {[%clk 0:02:38.6]} 13... dxe4 {[%clk 0:02:43.5]} 14.
Qc2 {[%clk 0:02:37.8]} 14... Na6 {[%clk 0:02:37.6]} 15. a3 {[%clk 0:02:23.4]}
15... Nc7 {[%clk 0:02:05.8]} 16. Bxd6 {[%clk 0:02:18.2]} 16... Qxd6 {[%clk
0:02:06.7]} 17. Nc3 {[%clk 0:02:18.4]} 17... Qe6 {[%clk 0:02:01.4]} 18. Kb1
{[%clk 0:02:12]} 18... Nd5 {[%clk 0:01:59.6]} 19. Rc1 {[%clk 0:02:06.2]} 19...
Rad8 {[%clk 0:01:52]} 20. Nxd5 {[%clk 0:01:59.1]} 20... Rxd5 {[%clk 0:01:47.9]}
21. Qb3 {[%clk 0:01:59.1]} 21... Re7 {[%clk 0:01:44.6]} 22. Rc2 {[%clk
0:01:56.1]} 22... Qg6 {[%clk 0:01:08.7]} 23. g3 {[%clk 0:01:33.6]} 23... Rf5
{[%clk 0:01:02.9]} 24. Rd1 {[%clk 0:01:33.4]} 24... h5 {[%clk 0:00:52.8]} 25. h4
{[%clk 0:01:32.3]} 25... Rd7 {[%clk 0:00:49.1]} 26. Rdd2 {[%clk 0:01:25.3]}
26... Kh7 {[%clk 0:00:45.5]} 27. Qa4 {[%clk 0:01:25.2]} 27... a6 {[%clk
0:00:44.6]} 28. Qb4 {[%clk 0:01:24.3]} 28... Qg4 {[%clk 0:00:39.7]} 29. Rc5
{[%clk 0:01:23.4]} 29... Rxc5 {[%clk 0:00:32.3]} 30. Qxc5 {[%clk 0:01:14]} 30...
Rd5 {[%clk 0:00:26.4]} 31. Qe7 {[%clk 0:01:12]} 31... Rd7 {[%clk 0:00:25.7]} 32.
Qe8 {[%clk 0:01:08.9]} 32... Kg6 {[%clk 0:00:20.8]} 33. Rc2 {[%clk 0:01:01.9]}
33... Rd5 {[%clk 0:00:20.6]} 34. Ka2 {[%clk 0:00:53.9]} 34... Qf5 {[%clk
0:00:15.8]} 35. Qe7 {[%clk 0:00:50.5]} 35... Rd7 {[%clk 0:00:15.8]} 36. Qf8
{[%clk 0:00:46.8]} 36... Rd5 {[%clk 0:00:15.5]} 37. Qb8 {[%clk 0:00:34.6]} 37...
Rd7 {[%clk 0:00:14.8]} 38. Qc8 {[%clk 0:00:31]} 38... Qd5+ {[%clk 0:00:13.2]}
39. Kb1 {[%clk 0:00:30.7]} 39... Qf5 {[%clk 0:00:11.6]} 40. Rc5 {[%clk
0:00:28.6]} 40... Rd5 {[%clk 0:00:07.9]} 41. Qxb7 {[%clk 0:00:16.2]} 41... Rxc5
{[%clk 0:00:07.8]} 42. dxc5 {[%clk 0:00:16.4]} 42... Qxc5 {[%clk 0:00:08.3]} 43.
Qxa6 {[%clk 0:00:16.9]} 43... Qf5 {[%clk 0:00:07.4]} 44. Qe2 {[%clk 0:00:17.3]}
44... Qd5 {[%clk 0:00:06.9]} 45. Qc2 {[%clk 0:00:17.8]} 45... c5 {[%clk
0:00:07.1]} 46. b3 {[%clk 0:00:17]} 46... Kf5 {[%clk 0:00:07]} 47. a4 {[%clk
0:00:17.5]} 47... Kg4 {[%clk 0:00:07.1]} 48. a5 {[%clk 0:00:17.5]} 48... Kf3
{[%clk 0:00:07.3]} 49. a6 {[%clk 0:00:17.4]} 49... Qc6 {[%clk 0:00:07.4]} 50. a7
{[%clk 0:00:15.2]} 50... Qc8 {[%clk 0:00:02.4]} 51. Qa2 {[%clk 0:00:14.3]} 51...
Qa8 {[%clk 0:00:02.1]} 52. Kc1 {[%clk 0:00:14.7]} 52... f5 {[%clk 0:00:01.8]}
53. Kd1 {[%clk 0:00:14.7]} 53... g6 {[%clk 0:00:02.7]} 54. Ke1 {[%clk
0:00:14.5]} 54... Kg2 {[%clk 0:00:03.2]} 55. Qa6 {[%clk 0:00:11.9]} 55... Kf3
{[%clk 0:00:03.7]} 56. Kf1 {[%clk 0:00:11.5]} 56... Qd8 {[%clk 0:00:03.3]} 57.
Qe2# {[%clk 0:00:12]} 1-0

[Event "Early-Titled-Tuesday-Blitz-April-16-2024"]
[Site "Chess.com"]
[Date "2024.04.16"]
[Round "2"]
[White "BallottiLuca"]
[Black "bescmelasti"]
[Result "1/2-1/2"]
[WhiteElo "2385"]
[BlackElo "2642"]
[TimeControl "180+1"]
[EndTime "8:18:09 PDT"]
[Termination "Game drawn - insufficient material"]

1. d4 {[%clk 0:03:00.9]} 1... Nf6 {[%clk 0:02:57]} 2. c4 {[%clk 0:03:01.8]} 2...
e6 {[%clk 0:02:57.1]} 3. Nc3 {[%clk 0:02:59.6]} 3... Bb4 {[%clk 0:02:54.1]} 4.
f3 {[%clk 0:02:59.7]} 4... d5 {[%clk 0:02:47]} 5. a3 {[%clk 0:03:00]} 5... Be7
{[%clk 0:02:46.9]} 6. e4 {[%clk 0:02:57.8]} 6... dxc4 {[%clk 0:02:41.7]} 7. Bxc4
{[%clk 0:02:53.7]} 7... O-O {[%clk 0:02:30.6]} 8. Be3 {[%clk 0:02:48.9]} 8... c5
{[%clk 0:02:22.6]} 9. Nge2 {[%clk 0:02:48.6]} 9... Nc6 {[%clk 0:02:19.6]} 10.
dxc5 {[%clk 0:02:40.5]} 10... Ne5 {[%clk 0:02:19.6]} 11. Qb3 {[%clk 0:02:19.2]}
11... Qa5 {[%clk 0:01:47.7]} 12. Bd4 {[%clk 0:01:57.7]} 12... Nfd7 {[%clk
0:01:40]} 13. O-O {[%clk 0:01:37.8]} 13... Nxc5 {[%clk 0:01:23.4]} 14. Qa2
{[%clk 0:01:23.9]} 14... Nxc4 {[%clk 0:01:14.4]} 15. Qxc4 {[%clk 0:01:24.8]}
15... b6 {[%clk 0:01:14.7]} 16. b4 {[%clk 0:01:14.8]} 16... Qa6 {[%clk
0:01:09.5]} 17. Qxa6 {[%clk 0:01:09.3]} 17... Nxa6 {[%clk 0:01:07.5]} 18. Nb5
{[%clk 0:01:09.7]} 18... Bd7 {[%clk 0:01:06.3]} 19. Nec3 {[%clk 0:01:04.9]}
19... Rfc8 {[%clk 0:01:05.9]} 20. Rac1 {[%clk 0:01:03]} 20... Nc7 {[%clk
0:00:59.3]} 21. Nxc7 {[%clk 0:01:01.9]} 21... Rxc7 {[%clk 0:01:00.2]} 22. Nd5
{[%clk 0:00:55.8]} 22... Rxc1 {[%clk 0:00:50]} 23. Nxe7+ {[%clk 0:00:55.7]}
23... Kf8 {[%clk 0:00:50.7]} 24. Rxc1 {[%clk 0:00:51.2]} 24... Kxe7 {[%clk
0:00:51.6]} 25. Bxg7 {[%clk 0:00:50.6]} 25... f6 {[%clk 0:00:47.1]} 26. Bh6
{[%clk 0:00:50.9]} 26... e5 {[%clk 0:00:42]} 27. Be3 {[%clk 0:00:49]} 27... h5
{[%clk 0:00:40.1]} 28. Kf2 {[%clk 0:00:49.2]} 28... h4 {[%clk 0:00:34.6]} 29. h3
{[%clk 0:00:49]} 29... Kd6 {[%clk 0:00:31.3]} 30. Ke1 {[%clk 0:00:49]} 30... Bb5
{[%clk 0:00:26.5]} 31. Rd1+ {[%clk 0:00:45.5]} 31... Ke6 {[%clk 0:00:26.3]} 32.
Kf2 {[%clk 0:00:40.2]} 32... Rc8 {[%clk 0:00:25.1]} 33. Rc1 {[%clk 0:00:38.7]}
33... Bc6 {[%clk 0:00:20.2]} 34. b5 {[%clk 0:00:25.1]} 34... Bd7 {[%clk
0:00:17]} 35. Rxc8 {[%clk 0:00:25]} 35... Bxc8 {[%clk 0:00:17.9]} 36. Ke2 {[%clk
0:00:25]} 36... a6 {[%clk 0:00:15.6]} 37. bxa6 {[%clk 0:00:22.8]} 37... Bxa6+
{[%clk 0:00:16.5]} 38. Ke1 {[%clk 0:00:23.2]} 38... b5 {[%clk 0:00:16.3]} 39.
Bf2 {[%clk 0:00:23.1]} 39... f5 {[%clk 0:00:12]} 40. exf5+ {[%clk 0:00:20.9]}
40... Kxf5 {[%clk 0:00:12.9]} 41. Bxh4 {[%clk 0:00:21.5]} 41... Bb7 {[%clk
0:00:13.2]} 42. Ke2 {[%clk 0:00:20.3]} 42... Bd5 {[%clk 0:00:12.8]} 43. Bf2
{[%clk 0:00:19.3]} 43... Kf4 {[%clk 0:00:12]} 44. Kd3 {[%clk 0:00:18.9]} 44...
Bc4+ {[%clk 0:00:11.9]} 45. Kc3 {[%clk 0:00:17.6]} 45... Bf1 {[%clk 0:00:12.8]}
46. Kb4 {[%clk 0:00:07.7]} 46... Bxg2 {[%clk 0:00:12.5]} 47. Kxb5 {[%clk
0:00:07.3]} 47... Kxf3 {[%clk 0:00:11.2]} 48. Bb6 {[%clk 0:00:07.4]} 48... Bxh3
{[%clk 0:00:11.1]} 49. a4 {[%clk 0:00:07.4]} 49... e4 {[%clk 0:00:10.9]} 50. a5
{[%clk 0:00:07.7]} 50... Bf1+ {[%clk 0:00:10.7]} 51. Kc6 {[%clk 0:00:06.5]}
51... Ke2 {[%clk 0:00:09.4]} 52. Kb7 {[%clk 0:00:05.9]} 52... Kd2 {[%clk
0:00:09.1]} 53. a6 {[%clk 0:00:05.6]} 53... Bg2 {[%clk 0:00:08.3]} 54. Kb8
{[%clk 0:00:04.1]} 54... e3 {[%clk 0:00:07.5]} 55. Bxe3+ {[%clk 0:00:03.6]}
55... Kxe3 {[%clk 0:00:08.4]} 56. a7 {[%clk 0:00:04.1]} 56... Kd4 {[%clk
0:00:09.3]} 57. a8=Q {[%clk 0:00:04.6]} 57... Bxa8 {[%clk 0:00:10]} 1/2-1/2

[Event "Early-Titled-Tuesday-Blitz-April-16-2024"]
[Site "Chess.com"]
[Date "2024.04.16"]
[Round "2"]
[White "GameOverBro"]
[Black "GoltsevDmitry2000"]
[Result "0-1"]
[WhiteElo "2550"]
[BlackElo "2787"]
[TimeControl "180+1"]
[EndTime "8:18:12 PDT"]
[Termination "GoltsevDmitry2000 won by resignation"]

1. e4 {[%clk 0:03:00.2]} 1... e6 {[%clk 0:03:00.1]} 2. d4 {[%clk 0:03:00]} 2...
d5 {[%clk 0:03:01]} 3. Nd2 {[%clk 0:03:00.1]} 3... c5 {[%clk 0:03:00.4]} 4. exd5
{[%clk 0:02:58.3]} 4... exd5 {[%clk 0:03:01.3]} 5. Ngf3 {[%clk 0:02:58.4]} 5...
Nf6 {[%clk 0:03:01]} 6. Bb5+ {[%clk 0:02:58.5]} 6... Nc6 {[%clk 0:03:00.7]} 7.
O-O {[%clk 0:02:58.3]} 7... Be7 {[%clk 0:03:01.2]} 8. dxc5 {[%clk 0:02:57.2]}
8... Bxc5 {[%clk 0:03:02.1]} 9. Re1+ {[%clk 0:02:57.2]} 9... Be6 {[%clk
0:03:02.3]} 10. Nb3 {[%clk 0:02:56.9]} 10... Bb6 {[%clk 0:03:02.3]} 11. Nbd4
{[%clk 0:02:54.2]} 11... O-O {[%clk 0:03:02.1]} 12. Nxe6 {[%clk 0:02:51.9]}
12... fxe6 {[%clk 0:03:02.9]} 13. Rxe6 {[%clk 0:02:44.9]} 13... Ne4 {[%clk
0:02:59.6]} 14. Be3 {[%clk 0:02:30.2]} 14... Bxe3 {[%clk 0:02:58.5]} 15. fxe3
{[%clk 0:02:29.8]} 15... Qb6 {[%clk 0:02:38.5]} 16. Nd4 {[%clk 0:02:05.4]} 16...
Rae8 {[%clk 0:02:28.9]} 17. Bxc6 {[%clk 0:01:51.7]} 17... Rxe6 {[%clk
0:02:25.6]} 18. Bxd5 {[%clk 0:01:49.3]} 18... Re8 {[%clk 0:02:25.9]} 19. Qg4
{[%clk 0:01:44.8]} 19... Nc5 {[%clk 0:02:06]} 20. Nxe6 {[%clk 0:01:12.4]} 20...
Nxe6 {[%clk 0:02:06.9]} 21. Qd4 {[%clk 0:01:09.3]} 21... Kh8 {[%clk 0:01:48.5]}
22. Qxb6 {[%clk 0:01:08]} 22... axb6 {[%clk 0:01:49.4]} 23. Bxe6 {[%clk
0:01:07.3]} 23... Rxe6 {[%clk 0:01:49.5]} 24. Rd1 {[%clk 0:01:07.1]} 24... h6
{[%clk 0:01:49.3]} 25. Kf2 {[%clk 0:01:07.2]} 25... Re7 {[%clk 0:01:48.1]} 26.
Rd6 {[%clk 0:01:06.8]} 26... b5 {[%clk 0:01:47.9]} 27. Rb6 {[%clk 0:01:05.8]}
27... Rd7 {[%clk 0:01:46.7]} 28. Ke2 {[%clk 0:01:05.1]} 28... Rd5 {[%clk
0:01:46.4]} 29. Rxb7 {[%clk 0:01:04.8]} 29... Kh7 {[%clk 0:01:46.9]} 30. Rc7
{[%clk 0:01:02]} 30... Rg5 {[%clk 0:01:46.3]} 31. g3 {[%clk 0:01:02.1]} 31...
Kg6 {[%clk 0:01:46.8]} 32. c4 {[%clk 0:01:01.8]} 32... bxc4 {[%clk 0:01:46.5]}
33. Rxc4 {[%clk 0:01:02.7]} 33... Ra5 {[%clk 0:01:47.2]} 34. a4 {[%clk
0:01:02.7]} 34... Kh5 {[%clk 0:01:47.3]} 35. Rb4 {[%clk 0:01:00.6]} 35... Ra7
{[%clk 0:01:44.4]} 36. Rb5+ {[%clk 0:01:00]} 36... Kg4 {[%clk 0:01:43.9]} 37.
Rb4+ {[%clk 0:00:59.3]} 37... Kh3 {[%clk 0:01:42.8]} 38. Rh4+ {[%clk 0:00:53.6]}
38... Kg2 {[%clk 0:01:43.1]} 39. b3 {[%clk 0:00:53.5]} 39... Ra8 {[%clk
0:01:37.5]} 40. Kd3 {[%clk 0:00:53.4]} 40... Kf3 {[%clk 0:01:36.8]} 41. e4
{[%clk 0:00:42.4]} 41... Rb8 {[%clk 0:01:24.2]} 42. Kc3 {[%clk 0:00:36.8]} 42...
Rb6 {[%clk 0:01:16.3]} 43. a5 {[%clk 0:00:36.4]} 43... Rc6+ {[%clk 0:01:13.8]}
44. Kd4 {[%clk 0:00:36.7]} 44... g5 {[%clk 0:01:12.1]} 45. Kd5 {[%clk
0:00:26.4]} 45... Ra6 {[%clk 0:01:03.5]} 46. b4 {[%clk 0:00:24.6]} 46... gxh4
{[%clk 0:01:01.3]} 47. gxh4 {[%clk 0:00:25.5]} 47... Kg4 {[%clk 0:01:01.5]} 48.
e5 {[%clk 0:00:25.4]} 48... Kf5 {[%clk 0:00:59.5]} 49. h5 {[%clk 0:00:23.2]}
49... Re6 {[%clk 0:00:54.8]} 50. b5 {[%clk 0:00:22.2]} 50... Rxe5+ {[%clk
0:00:53.2]} 51. Kc6 {[%clk 0:00:22.7]} 51... Re6+ {[%clk 0:00:50.8]} 52. Kc7
{[%clk 0:00:21.5]} 52... Re5 {[%clk 0:00:47.4]} 53. Kb6 {[%clk 0:00:21.2]} 53...
Re6+ {[%clk 0:00:37.4]} 54. Ka7 {[%clk 0:00:21.1]} 54... Re5 {[%clk 0:00:36.6]}
55. Ka6 {[%clk 0:00:21.3]} 55... Ke6 {[%clk 0:00:31.2]} 56. b6 {[%clk
0:00:21.4]} 56... Kd7 {[%clk 0:00:31.2]} 57. h4 {[%clk 0:00:08.8]} 57... Kc6
{[%clk 0:00:28.4]} 58. Ka7 {[%clk 0:00:08.3]} 58... Rxa5+ {[%clk 0:00:27.1]} 59.
Kb8 {[%clk 0:00:07.9]} 59... Kxb6 {[%clk 0:00:27.4]} 0-1

[Event "Early-Titled-Tuesday-Blitz-April-16-2024"]
[Site "Chess.com"]
[Date "2024.04.16"]
[Round "2"]
[White "Ginger_GM"]
[Black "aanshnerurkar"]
[Result "0-1"]
[WhiteElo "2648"]
[BlackElo "2384"]
[TimeControl "180+1"]
[EndTime "8:18:12 PDT"]
[Termination "aanshnerurkar won by resignation"]

1. d4 {[%clk 0:03:00.9]} 1... Nf6 {[%clk 0:02:59.5]} 2. Bg5 {[%clk 0:02:59.6]}
2... Ne4 {[%clk 0:02:59.3]} 3. h4 {[%clk 0:02:58.3]} 3... c5 {[%clk 0:02:59]} 4.
d5 {[%clk 0:02:57.7]} 4... Qb6 {[%clk 0:02:56.7]} 5. Nd2 {[%clk 0:02:56]} 5...
Nxg5 {[%clk 0:02:52.1]} 6. hxg5 {[%clk 0:02:55.9]} 6... Qxb2 {[%clk 0:02:52]} 7.
g6 {[%clk 0:02:40.4]} 7... fxg6 {[%clk 0:02:50.6]} 8. e3 {[%clk 0:02:40]} 8...
e6 {[%clk 0:02:18.6]} 9. Rb1 {[%clk 0:02:30.6]} 9... Qe5 {[%clk 0:02:12.1]} 10.
dxe6 {[%clk 0:02:17.3]} 10... Qxe6 {[%clk 0:02:11.9]} 11. Ngf3 {[%clk
0:02:08.8]} 11... Be7 {[%clk 0:02:09]} 12. e4 {[%clk 0:02:00.2]} 12... d5 {[%clk
0:02:06.5]} 13. Bb5+ {[%clk 0:01:46.4]} 13... Nc6 {[%clk 0:02:06.1]} 14. O-O
{[%clk 0:01:40.5]} 14... Bd7 {[%clk 0:01:58.7]} 15. exd5 {[%clk 0:01:39.5]}
15... Qxd5 {[%clk 0:01:58.3]} 16. Re1 {[%clk 0:01:38.2]} 16... Nd4 {[%clk
0:01:22.2]} 17. Nxd4 {[%clk 0:01:08.4]} 17... Qxd4 {[%clk 0:01:09.9]} 18. Qe2
{[%clk 0:00:57.2]} 18... O-O {[%clk 0:00:31.1]} 19. Bc4+ {[%clk 0:00:55.8]}
19... Kh8 {[%clk 0:00:30.4]} 20. Nb3 {[%clk 0:00:55.2]} 20... Qf6 {[%clk
0:00:25.5]} 21. Qxe7 {[%clk 0:00:41.3]} 21... Qxf2+ {[%clk 0:00:25]} 22. Kh1
{[%clk 0:00:38.8]} 22... Bc6 {[%clk 0:00:21.9]} 23. Qg5 {[%clk 0:00:38.2]} 23...
Rf5 {[%clk 0:00:15.7]} 24. Rf1 {[%clk 0:00:38.4]} 24... Qxf1+ {[%clk 0:00:14.9]}
25. Rxf1 {[%clk 0:00:38.1]} 25... Rxg5 {[%clk 0:00:15.4]} 26. Rf2 {[%clk
0:00:37.8]} 26... h6 {[%clk 0:00:14.3]} 27. Kh2 {[%clk 0:00:35.3]} 27... Kh7
{[%clk 0:00:14.7]} 28. Na5 {[%clk 0:00:32.4]} 28... Re8 {[%clk 0:00:12.2]} 29.
Bd3 {[%clk 0:00:29.1]} 29... c4 {[%clk 0:00:12.3]} 30. Nxc4 {[%clk 0:00:28.4]}
30... Bd5 {[%clk 0:00:12.8]} 31. Nd6 {[%clk 0:00:26.8]} 31... Rd8 {[%clk
0:00:13.1]} 32. Nf7 {[%clk 0:00:23.1]} 32... Bxf7 {[%clk 0:00:13.2]} 33. Rxf7
{[%clk 0:00:23.8]} 33... Rh5+ {[%clk 0:00:13.7]} 34. Kg3 {[%clk 0:00:23.7]}
34... Rg5+ {[%clk 0:00:13.5]} 35. Kf3 {[%clk 0:00:24]} 35... Rb8 {[%clk
0:00:11.1]} 36. a4 {[%clk 0:00:22.6]} 36... Kg8 {[%clk 0:00:11.3]} 37. Rc7
{[%clk 0:00:22]} 37... Rf8+ {[%clk 0:00:10.9]} 38. Ke3 {[%clk 0:00:21.9]} 38...
Re5+ {[%clk 0:00:09.6]} 39. Kd4 {[%clk 0:00:21.4]} 39... Rg5 {[%clk 0:00:09.8]}
40. Be4 {[%clk 0:00:20.1]} 40... b6 {[%clk 0:00:09.1]} 41. Rxa7 {[%clk
0:00:20.1]} 41... Rg4 {[%clk 0:00:09.7]} 42. Re7 {[%clk 0:00:19.6]} 42... h5
{[%clk 0:00:09.9]} 43. c4 {[%clk 0:00:18.9]} 43... h4 {[%clk 0:00:10.3]} 44. Ke5
{[%clk 0:00:19.3]} 44... Rg5+ {[%clk 0:00:09.9]} 45. Kd6 {[%clk 0:00:18.7]}
45... Rg4 {[%clk 0:00:10.4]} 46. Bd5+ {[%clk 0:00:18.8]} 46... Kh7 {[%clk
0:00:10.3]} 47. Rb7 {[%clk 0:00:18.9]} 47... Rf6+ {[%clk 0:00:09.6]} 48. Ke7
{[%clk 0:00:18.9]} 48... g5 {[%clk 0:00:09.8]} 49. Ra7 {[%clk 0:00:14.8]} 49...
Rg3 {[%clk 0:00:10.1]} 50. a5 {[%clk 0:00:14.9]} 50... bxa5 {[%clk 0:00:10.1]}
51. Rxa5 {[%clk 0:00:15.8]} 51... g4 {[%clk 0:00:10.5]} 52. Be4+ {[%clk
0:00:16.2]} 52... Kh6 {[%clk 0:00:10.2]} 53. Ra8 {[%clk 0:00:14.8]} 53... Re3
{[%clk 0:00:09.8]} 54. Rh8+ {[%clk 0:00:14.6]} 54... Kg5 {[%clk 0:00:10.1]} 55.
Kd7 {[%clk 0:00:13.7]} 55... Rxe4 {[%clk 0:00:10.5]} 56. c5 {[%clk 0:00:13.5]}
56... g3 {[%clk 0:00:11.1]} 57. Re8 {[%clk 0:00:12.4]} 57... Rxe8 {[%clk
0:00:10.8]} 0-1

[Event "Early-Titled-Tuesday-Blitz-April-16-2024"]
[Site "Chess.com"]
[Date "2024.04.16"]
[Round "2"]
[White "Chessbard1972"]
[Black "Orest_Vovk"]
[Result "0-1"]
[WhiteElo "2348"]
[BlackElo "2576"]
[TimeControl "180+1"]
[EndTime "8:18:16 PDT"]
[Termination "Orest_Vovk won on time"]

1. d4 {[%clk 0:03:00.9]} 1... Nc6 {[%clk 0:02:55.4]} 2. c4 {[%clk 0:02:57.6]}
2... e5 {[%clk 0:02:55.6]} 3. d5 {[%clk 0:02:56.8]} 3... Nce7 {[%clk 0:02:55.6]}
4. d6 {[%clk 0:02:55.6]} 4... Ng6 {[%clk 0:02:55.5]} 5. dxc7 {[%clk 0:02:54.3]}
5... Qxc7 {[%clk 0:02:55.7]} 6. e3 {[%clk 0:02:48.8]} 6... Bb4+ {[%clk
0:02:55.3]} 7. Bd2 {[%clk 0:02:47.9]} 7... Bxd2+ {[%clk 0:02:54.2]} 8. Qxd2
{[%clk 0:02:46.8]} 8... Nf6 {[%clk 0:02:55.1]} 9. Nc3 {[%clk 0:02:46.1]} 9...
O-O {[%clk 0:02:55.3]} 10. Nf3 {[%clk 0:02:44.7]} 10... a6 {[%clk 0:02:48.4]}
11. Be2 {[%clk 0:02:43]} 11... d6 {[%clk 0:02:44.1]} 12. O-O {[%clk 0:02:41.2]}
12... Be6 {[%clk 0:02:43.6]} 13. b3 {[%clk 0:02:36.8]} 13... h6 {[%clk
0:02:42.2]} 14. Rac1 {[%clk 0:02:35.1]} 14... Rad8 {[%clk 0:02:40.5]} 15. Nd5
{[%clk 0:02:32.3]} 15... Bxd5 {[%clk 0:02:38.3]} 16. cxd5 {[%clk 0:02:32.3]}
16... Qb6 {[%clk 0:02:37.9]} 17. Rfd1 {[%clk 0:02:24.6]} 17... Ne4 {[%clk
0:02:34.6]} 18. Qc2 {[%clk 0:02:22.2]} 18... f5 {[%clk 0:02:34]} 19. Nd2 {[%clk
0:02:19.8]} 19... Nxd2 {[%clk 0:02:24.9]} 20. Rxd2 {[%clk 0:02:14.4]} 20... Rc8
{[%clk 0:02:08.9]} 21. Qxc8 {[%clk 0:02:10.7]} 21... Rxc8 {[%clk 0:02:09.8]} 22.
Rxc8+ {[%clk 0:02:10.7]} 22... Kh7 {[%clk 0:02:10.3]} 23. Bh5 {[%clk 0:02:00.8]}
23... Qa5 {[%clk 0:01:55.4]} 24. Bxg6+ {[%clk 0:01:51.3]} 24... Kxg6 {[%clk
0:01:54.8]} 25. Rcc2 {[%clk 0:01:50.3]} 25... Qb4 {[%clk 0:01:48.4]} 26. f3
{[%clk 0:01:47.9]} 26... Qb6 {[%clk 0:01:45.2]} 27. Rc3 {[%clk 0:01:41.3]} 27...
f4 {[%clk 0:01:43.7]} 28. Kf2 {[%clk 0:01:38.1]} 28... Qb4 {[%clk 0:01:35.1]}
29. Rdc2 {[%clk 0:01:34.1]} 29... fxe3+ {[%clk 0:01:32.3]} 30. Rxe3 {[%clk
0:01:32.5]} 30... Qd4 {[%clk 0:01:26.2]} 31. Ke2 {[%clk 0:01:27.2]} 31... Qxd5
{[%clk 0:01:23.9]} 32. Rd3 {[%clk 0:01:27.3]} 32... Qb5 {[%clk 0:01:22.3]} 33.
a4 {[%clk 0:01:26.2]} 33... Qb6 {[%clk 0:01:19.9]} 34. Rcd2 {[%clk 0:01:24.4]}
34... Kh7 {[%clk 0:01:19.5]} 35. h4 {[%clk 0:01:20.6]} 35... d5 {[%clk
0:01:18.7]} 36. Rxd5 {[%clk 0:01:19.1]} 36... Qxb3 {[%clk 0:01:18.1]} 37. a5
{[%clk 0:01:15.8]} 37... Qc4+ {[%clk 0:01:16.5]} 38. Ke3 {[%clk 0:01:12.7]}
38... Qf4+ {[%clk 0:01:12.6]} 39. Ke2 {[%clk 0:01:11.5]} 39... e4 {[%clk
0:01:10.3]} 40. h5 {[%clk 0:01:07]} 40... exf3+ {[%clk 0:01:01.4]} 41. gxf3
{[%clk 0:01:07]} 41... Qc4+ {[%clk 0:00:59.3]} 42. Ke3 {[%clk 0:01:06.1]} 42...
b5 {[%clk 0:00:55.7]} 43. axb6 {[%clk 0:01:04.8]} 43... Qb3+ {[%clk 0:00:55.8]}
44. Kf4 {[%clk 0:01:01.6]} 44... Qxb6 {[%clk 0:00:56.7]} 45. Rd7 {[%clk
0:00:54]} 45... Qf6+ {[%clk 0:00:54.9]} 46. Ke4 {[%clk 0:00:49.6]} 46... Qh4+
{[%clk 0:00:54.6]} 47. Ke3 {[%clk 0:00:48.7]} 47... Qxh5 {[%clk 0:00:53]} 48.
R2d5 {[%clk 0:00:47.1]} 48... Qh1 {[%clk 0:00:49.5]} 49. R7d6 {[%clk 0:00:36]}
49... Qa1 {[%clk 0:00:42.1]} 50. Kf4 {[%clk 0:00:30]} 50... Qa4+ {[%clk
0:00:37.7]} 51. Rd4 {[%clk 0:00:29.1]} 51... Qa2 {[%clk 0:00:34.7]} 52. Rd7
{[%clk 0:00:26.2]} 52... a5 {[%clk 0:00:33.8]} 53. Ra7 {[%clk 0:00:22.8]} 53...
Qc2 {[%clk 0:00:12.7]} 54. Rdd7 {[%clk 0:00:21.4]} 54... Qc3 {[%clk 0:00:10.3]}
55. Ke4 {[%clk 0:00:19.2]} 55... a4 {[%clk 0:00:09.8]} 56. f4 {[%clk 0:00:13.2]}
56... a3 {[%clk 0:00:09.8]} 57. f5 {[%clk 0:00:13.2]} 57... a2 {[%clk
0:00:09.7]} 58. f6 {[%clk 0:00:01.4]} 58... Qxf6 {[%clk 0:00:06.1]} 0-1